fUST/lending_fUST_20250707
["ID","MTS","AMOUNT","RATE_DAILY","PERIOD"]
[370042841,1751861367331,-460.0,0.00018006,2]
[370042842,1751861367352,-473.38693246,0.00018007,2]
[370042843,1751861367373,-2206.38560124,0.00018008,2]
[370042844,1751861367396,-214.87114481,0.00018279,2]
[370042845,1751861372318,2100.16678989,0.00017056,2]
[370042868,1751861432368,-300.0,0.00017055,2]
[370042870,1751861432379,-401.35014305,0.00017056,2]
[370042914,1751861438544,-11781.96049183,0.00017056,2]
[370042917,1751861438555,-437.6585199,0.00017056,2]
[370042929,1751861438651,-10178.86405533,0.00017056,2]
[370042932,1751861438660,-460.0,0.00018278,2]
[370042935,1751861438669,-460.0,0.00018279,2]
[370042937,1751861438679,-460.0,0.00018279,2]
[370042939,1751861438688,-460.0,0.00018279,2]
[370042941,1751861438697,-460.0,0.00018279,2]
[370042943,1751861438707,-460.0,0.00018279,2]
[370042945,1751861438716,-460.0,0.00018279,2]
[370042947,1751861438725,-460.0,0.00018279,2]
[370042949,1751861438734,-460.0,0.00018279,2]
[370042951,1751861438743,-1654.78920093,0.00018279,2]
[370042953,1751861438752,-460.0,0.0001828,2]
[370042955,1751861438761,-460.0,0.0001828,2]
[370042957,1751861438772,-460.0,0.0001828,2]
[370042959,1751861438781,-216.12035058,0.00018454,2]
[370042960,1751861438790,-460.0,0.00018552,2]
[370042962,1751861438799,-458.36252795,0.00018552,2]
[370042964,1751861438808,-460.0,0.00018552,2]
[370042966,1751861438817,-251.49,0.00018553,2]
[370042968,1751861438826,-468.1066561,0.00018553,2]
[370042970,1751861438836,-463.58825248,0.00018553,2]
[370042972,1751861438845,-465.09225227,0.00018553,2]
[370042974,1751861438855,-465.05563588,0.00018553,2]
[370042976,1751861438864,-567.04134233,0.00018553,2]
[370042978,1751861438874,-460.0,0.00018553,2]
[370042980,1751861438883,-460.0,0.00018553,2]
[370042982,1751861438892,-460.0,0.00018553,2]
[370042984,1751861438902,-345.53507918,0.00018553,2]
[370042986,1751861438911,-460.0,0.00018553,2]
[370042988,1751861438920,-460.0,0.00018553,2]
[370042990,1751861438929,-460.0,0.00018553,2]
[370042992,1751861438939,-460.0,0.00018553,2]
[370042994,1751861438947,-585.8,0.00018553,2]
[370042996,1751861438957,-161.31414194,0.00018553,2]
[370042998,1751861438968,-460.0,0.00018553,2]
[370043000,1751861438978,-460.0,0.00018554,2]
[370043002,1751861438987,-460.0,0.00018554,2]
[370043004,1751861438995,-460.0,0.00018554,2]
[370043006,1751861439005,-460.0,0.00018555,2]
[370043008,1751861439014,-460.0,0.00018555,2]
[370043010,1751861439024,-460.0,0.00018555,2]
[370043012,1751861439033,-460.0,0.00018555,2]
[370043014,1751861439043,-460.0,0.00018555,2]
[370043016,1751861439052,-460.0,0.00018555,2]
[370043018,1751861439062,-440.8748576,0.00018555,2]
[370043020,1751861439071,-420.0,0.00018626,2]
[370043022,1751861439080,-1875.06352043,0.00018627,2]
[370043024,1751861439090,-214.13,0.00018826,2]
[370043026,1751861439099,-460.0,0.00018826,2]
[370043028,1751861439108,-460.0,0.00018827,2]
[370043030,1751861439117,-460.0,0.00018827,2]
[370043032,1751861439126,-460.0,0.00018827,2]
[370043034,1751861439135,-460.0,0.00018827,2]
[370043036,1751861439144,-460.0,0.00018827,2]
[370043038,1751861439155,-460.0,0.00018827,2]
[370043040,1751861439163,-460.0,0.00018827,2]
[370043042,1751861439173,-279.73,0.00018827,2]
[370043044,1751861439182,-500.0,0.00018827,2]
[370043046,1751861439191,-549.64181824,0.00018828,2]
[370043048,1751861439200,-460.0,0.00018828,2]
[370043050,1751861439210,-460.0,0.00018829,2]
[370043052,1751861439219,-460.0,0.00018829,2]
[370043054,1751861439229,-460.0,0.00018829,2]
[370043056,1751861439238,-460.0,0.00018829,2]
[370043058,1751861439248,-460.0,0.00018829,2]
[370043060,1751861439258,-1042.570553,0.000189,2]
[370043062,1751861439267,-17104.26881294,0.00018998,2]
[370043064,1751861439278,-460.0,0.000191,2]
[370043066,1751861439287,-460.0,0.00019101,2]
[370043068,1751861439297,-460.0,0.00019101,2]
[370043070,1751861439307,-460.0,0.00019101,2]
[370043072,1751861439317,-460.0,0.00019101,2]
[370043074,1751861439327,-460.0,0.00019101,2]
[370043076,1751861439336,-460.0,0.00019101,2]
[370043078,1751861439346,-460.0,0.00019102,2]
[370043080,1751861439357,-460.0,0.00019103,2]
[370043082,1751861439366,-460.0,0.00019103,2]
[370043084,1751861439377,-460.0,0.00019103,2]
[370043086,1751861439387,-187.35,0.00019103,2]
[370043088,1751861439397,-460.0,0.00019103,2]
[370043090,1751861439407,-666.0,0.00019178,2]
[370043092,1751861439418,-391.713234,0.00019178,2]
[370043094,1751861439427,-460.0,0.00019374,2]
[370043096,1751861439437,-460.0,0.00019375,2]
[370043098,1751861439447,-460.0,0.00019375,2]
[370043100,1751861439457,-460.0,0.00019375,2]
[370043102,1751861439467,-460.0,0.00019375,2]
[370043104,1751861439477,-460.0,0.00019375,2]
[370043105,1751861439486,-405.45215504,0.00019375,2]
[370043106,1751861439496,-460.0,0.00019376,2]
[370043107,1751861439507,-487.5,0.00019377,2]
[370043108,1751861439516,-460.0,0.00019377,2]
[370043109,1751861439526,-460.0,0.00019377,2]
[370043110,1751861439535,-501.06783131,0.00019523,2]
[370043111,1751861439545,-500.0,0.00019523,2]
[370043112,1751861439555,-460.0,0.00019648,2]
[370043113,1751861439565,-460.0,0.00019649,2]
[370043114,1751861439575,-460.0,0.00019649,2]
[370043115,1751861439585,-522.99,0.00019649,2]
[370043116,1751861439599,-460.0,0.00019649,2]
[370043117,1751861439610,-460.0,0.00019649,2]
[370043118,1751861439619,-519.74,0.0001965,2]
[370043119,1751861439628,-421.92974642,0.00019651,2]
[370043120,1751861439638,-460.0,0.00019651,2]
[370043121,1751861439647,-502.30648034,0.000197,2]
[370043122,1751861439656,-500.0,0.000197,2]
[370043123,1751861439665,-488.49828,0.00019766,2]
[370043124,1751861439674,-488.49828,0.00019856,2]
[370043125,1751861439683,-171.52536177,0.00019863,2]
[370043126,1751861439693,-1206.77470714,0.000199,2]
[370043127,1751861439702,-366.18885519,0.00019922,2]
[370043128,1751861439711,-460.0,0.00019923,2]
[370043129,1751861439720,-231.08881733,0.00019923,2]
[370043130,1751861439729,-460.0,0.00019923,2]
[370043131,1751861439738,-460.0,0.00019923,2]
[370043132,1751861439748,-460.0,0.00019925,2]
[370043133,1751861439758,-488.49828,0.00019947,2]
[370043134,1751861439900,-151.0,0.00019952,2]
[370043135,1751861439910,-200.31382204,0.00019952,2]
[370043136,1751861439919,-198.0,0.00019952,2]
[370043137,1751861439928,-518.45859757,0.00020005,2]
[370043138,1751861439938,-501.5726015,0.00020005,2]
[370043139,1751861439947,-488.49828,0.00020037,2]
[370043140,1751861439957,-1000.0,0.00020071,2]
[370043141,1751861439968,-1206.77470688,0.00020107,2]
[370043142,1751861439978,-569.94250362,0.00020119,2]
[370043143,1751861439987,-172.046631,0.00020119,2]
[370043144,1751861439997,-488.49828,0.00020128,2]
[370043145,1751861440006,-239.508514,0.00020187,2]
[370043146,1751861440016,-460.0,0.00020197,2]
[370043147,1751861440025,-460.42079401,0.00020197,2]
[370043148,1751861440035,-460.0,0.00020197,2]
[370043149,1751861440044,-460.0,0.00020199,2]
[370043150,1751861440053,-488.49828,0.00020218,2]
[370043151,1751861440062,-488.49828,0.00020309,2]
[370043152,1751861440072,-1206.77470688,0.00020314,3]
[370043153,1751861440081,-587.0,0.00020343,2]
[370043154,1751861440090,-488.49828,0.00020399,2]
[370043155,1751861440099,-460.0,0.00020471,2]
[370043156,1751861440108,-460.0,0.00020471,2]
[370043157,1751861440117,-460.0,0.00020473,2]
[370043158,1751861440127,-488.49828,0.0002049,2]
[370043159,1751861440137,-1206.77470688,0.00020521,3]
[370043160,1751861440146,-848.27993403,0.0002058,10]
[370043161,1751861440155,-488.49828,0.0002058,2]
[370043162,1751861440165,-500.0,0.00020618,2]
[370043163,1751861440174,-488.49828,0.00020671,2]
[370043164,1751861440183,-150.0,0.00020696,2]
[370043165,1751861440193,-214.06929976,0.00020708,10]
[370043166,1751861440203,-1206.77470688,0.00020728,3]
[370043167,1751861440213,-460.0,0.00020745,2]
[370043169,1751861440222,-460.0,0.00020745,2]
[370043171,1751861440231,-157.49377952,0.00020747,2]
[370043173,1751861440241,-524.98484073,0.00020757,10]
[370043175,1751861440250,-488.49828,0.00020761,2]
[370043177,1751861440259,-482.231,0.00020776,2]
[370043179,1751861440268,-12584.46609586,0.00020848,2]
[370043181,1751861440277,-160.0,0.00020848,2]
[370043183,1751861440287,-160.0,0.00020848,2]
[370043185,1751861440296,-230.48668418,0.00020848,2]
[370043187,1751861440306,-848.27993403,0.00020848,2]
[370043189,1751861440315,-160.0,0.00020848,2]
[370043191,1751861440325,-215.21338352,0.00020848,2]
[370043193,1751861440334,-160.0,0.00020848,2]
[370043195,1751861440344,-160.0,0.00020848,2]
[370043196,1751861440354,-837.79946008,0.00020848,2]
[370043198,1751861440363,-214.06929976,0.00020848,2]
[370043200,1751861440373,-488.49828,0.00020852,2]
[370043202,1751861440382,-500.0,0.00020854,2]
[370043204,1751861440391,-500.0,0.00020854,2]
[370043206,1751861440401,-500.0,0.00020854,2]
[370043208,1751861440410,-500.0,0.00020854,2]
[370043210,1751861440419,-500.0,0.00020854,2]
[370043212,1751861440429,-500.0,0.00020854,2]
[370043214,1751861440438,-500.0,0.00020854,2]
[370043216,1751861440448,-500.0,0.00020854,2]
[370043218,1751861440457,-500.0,0.00020854,2]
[370043220,1751861440466,-500.0,0.00020854,2]
[370043221,1751861440475,-500.0,0.00020854,2]
[370043223,1751861440484,-171.05729584,0.00020854,2]
[370043225,1751861440494,-500.0,0.00020854,2]
[370043227,1751861440503,-238.72854942,0.00020854,2]
[370043229,1751861440512,-500.0,0.00020854,2]
[370043231,1751861440522,-526.74148605,0.00020854,2]
[370043233,1751861440531,-500.0,0.00020854,2]
[370043234,1751861440540,-500.0,0.00020854,2]
[370043235,1751861440551,-500.0,0.00020854,2]
[370043236,1751861440560,-500.0,0.00020854,2]
[370043237,1751861440569,-500.0,0.00020854,2]
[370043238,1751861440579,-500.0,0.00020854,2]
[370043239,1751861440589,-500.0,0.00020854,2]
[370043241,1751861440598,-500.0,0.00020854,2]
[370043243,1751861440608,-500.0,0.00020854,2]
[370043245,1751861440617,-433.59259771,0.00020854,2]
[370043247,1751861440626,-500.0,0.00020854,2]
[370043249,1751861440635,-500.0,0.00020854,2]
[370043251,1751861440645,-500.0,0.00020854,2]
[370043253,1751861440654,-500.0,0.00020854,2]
[370043254,1751861440663,-500.0,0.00020854,2]
[370043256,1751861440672,-500.0,0.00020854,2]
[370043257,1751861440681,-500.0,0.00020854,2]
[370043258,1751861440691,-500.0,0.00020854,2]
[370043259,1751861440701,-582.42516956,0.00020854,2]
[370043260,1751861440710,-524.98484073,0.00020857,10]
[370043261,1751861440719,-1609.92865169,0.00020893,2]
[370043262,1751861440728,-1206.77470688,0.00020934,4]
[370043263,1751861440738,-488.49828,0.00020942,2]
[370043264,1751861440747,-3000.0,0.00021,2]
[370043265,1751861440756,-378.0,0.00021,2]
[370043266,1751861440765,-3000.0,0.0002101,2]
[370043267,1751861440774,-460.0,0.00021019,2]
[370043268,1751861440784,-460.0,0.00021019,2]
[370043269,1751861440794,-3000.0,0.0002102,2]
[370043270,1751861440803,-3000.0,0.0002103,2]
[370043272,1751861440812,-488.49828,0.00021033,2]
[370043274,1751861440822,-3000.0,0.0002104,2]
[370043275,1751861440831,-3000.0,0.0002105,2]
[370043276,1751861440840,-3000.0,0.0002106,2]
[370043277,1751861440850,-3000.0,0.0002107,2]
[370043278,1751861440859,-3000.0,0.0002108,2]
[370043279,1751861440868,-3000.0,0.0002109,2]
[370043280,1751861440878,-3000.0,0.000211,2]
[370043281,1751861440887,-3000.0,0.0002111,2]
[370043282,1751861440896,-3000.0,0.0002112,2]
[370043283,1751861440906,-488.49828,0.00021123,2]
[370043284,1751861440915,-3000.0,0.0002113,2]
[370043285,1751861440924,-3000.0,0.0002114,2]
[370043286,1751861440933,-1094.78989579,0.0002114,2]
[370043287,1751861440942,-1206.77470688,0.00021141,4]
[370043288,1751861440952,-3000.0,0.0002115,2]
[370043289,1751861440961,-3000.0,0.0002116,2]
[370043290,1751861440973,-3000.0,0.0002117,2]
[370043291,1751861440982,-3000.0,0.0002118,2]
[370043292,1751861440991,-3000.0,0.0002119,2]
[370043293,1751861441001,-3000.0,0.000212,2]
[370043294,1751861441011,-3000.0,0.0002121,2]
[370043295,1751861441020,-488.49828,0.00021213,2]
[370043296,1751861441030,-3000.0,0.0002122,2]
[370043297,1751861441039,-3000.0,0.0002123,2]
[370043298,1751861441049,-26540.65105057,0.0002123,2]
[370043299,1751861441059,-3000.0,0.0002124,2]
[370043300,1751861441068,-3000.0,0.0002125,2]
[370043301,1751861441077,-3000.0,0.0002126,2]
[370043302,1751861441087,-3000.0,0.0002127,2]
[370043303,1751861441097,-3000.0,0.0002128,2]
[370043304,1751861441106,-3000.0,0.0002129,2]
[370043305,1751861441115,-181.71320046,0.00021293,2]
[370043306,1751861441124,-460.0,0.00021293,2]
[370043307,1751861441133,-3000.0,0.000213,2]
[370043308,1751861441142,-488.49828,0.00021304,2]
[370043309,1751861441151,-3000.0,0.0002131,2]
[370043310,1751861441161,-3000.0,0.0002132,2]
[370043311,1751861441170,-3000.0,0.0002133,2]
[370043312,1751861441179,-3000.0,0.0002134,2]
[370043313,1751861441189,-1206.77470688,0.00021348,5]
[370043314,1751861441199,-3000.0,0.0002135,2]
[370043315,1751861441207,-3000.0,0.0002136,2]
[370043316,1751861441217,-3000.0,0.0002137,2]
[370043317,1751861441226,-4748.630156,0.0002138,2]
[370043318,1751861441235,-488.49828,0.00021394,2]
[370043319,1751861441244,-488.49828,0.00021485,2]
[370043320,1751861441254,-1206.77470688,0.00021555,5]
[370043321,1751861441263,-460.0,0.00021567,2]
[370043322,1751861441272,-179.76630381,0.00021568,2]
[370043323,1751861441282,-1206.77470688,0.00021762,5]
[370043324,1751861441291,-460.0,0.00021841,2]
[370043325,1751861441300,-1206.77470688,0.00021969,6]
[370043326,1751861441310,-628.58,0.00022,7]
[370043327,1751861441319,-4434.17,0.00022,7]
[370043328,1751861441329,-58689.35,0.00022,7]
[370043329,1751861441338,-150.0,0.00022,2]
[370043330,1751861441348,-848.27993403,0.00022,7]
[370043331,1751861441358,-214.06929976,0.00022,7]
[370043332,1751861441368,-1094.78989579,0.00022055,2]
[370043333,1751861441377,-460.0,0.00022115,2]
[370043334,1751861441387,-1206.77470688,0.00022176,6]
[370043335,1751861441396,-823.0,0.00022218,2]
[370043336,1751861441406,-1206.77470688,0.00022383,7]
[370043337,1751861441415,-460.0,0.00022389,2]
[370043338,1751861441424,-1206.77470688,0.0002259,7]
[370043339,1751861441434,-391.713234,0.00022603,2]
[370043340,1751861441443,-460.0,0.00022663,2]
[370043341,1751861441452,-1206.77470688,0.00022797,7]
[370043342,1751861441461,-460.0,0.00022937,2]
[370043343,1751861441470,-1094.78989579,0.00022971,2]
[370043344,1751861441480,-330.67695274,0.00023,2]
[370043345,1751861441490,-160.0,0.00023,2]
[370043346,1751861441500,-1206.77470688,0.00023003,8]
[370043347,1751861441509,-150.0,0.00023014,7]
[370043348,1751861441518,-26540.65105055,0.00023065,2]
[370043349,1751861441528,-366.6942869,0.00023096,2]
[370043350,1751861441537,-366.6942869,0.00023096,2]
[370043351,1751861441546,-223.6670826,0.00023096,2]
[370043352,1751861441556,-1206.77470688,0.0002321,8]
[370043353,1751861441565,-292.41,0.00023211,2]
[370043354,1751861441574,-628.58,0.000233,7]
[370043355,1751861441584,-355.527084,0.0002337,2]
[370043356,1751861441593,-4434.17,0.000234,7]
[370043357,1751861441602,-58689.35,0.000234,7]
[370043358,1751861441611,-848.27993403,0.000234,7]
[370043359,1751861441620,-1206.77470688,0.00023417,9]
[370043360,1751861441629,-509.57661228,0.00023443,2]
[370043361,1751861441638,-207.4,0.00023465,2]
[370043362,1751861441647,-5000.0,0.00023465,2]
[370043363,1751861441656,-500.0,0.00023465,2]
[370043364,1751861441665,-500.0,0.00023465,2]
[370043365,1751861441674,-500.0,0.00023465,2]
[370043366,1751861441684,-690.642,0.00023465,2]
[370043367,1751861441693,-500.0,0.00023465,2]
[370043368,1751861441702,-1500.0,0.00023465,2]
[370043369,1751861441711,-500.0,0.00023465,2]
[370043370,1751861441721,-1500.0,0.00023465,2]
[370043371,1751861441730,-479.05722446,0.00023465,2]
[370043372,1751861441739,-1500.0,0.00023465,2]
[370043373,1751861441748,-3794.1510306,0.00023465,2]
[370043374,1751861441757,-1500.0,0.00023465,2]
[370043375,1751861441766,-1500.0,0.00023465,2]
[370043376,1751861441775,-1500.0,0.00023465,2]
[370043377,1751861441784,-1500.0,0.00023465,2]
[370043378,1751861441793,-1500.0,0.00023465,2]
[370043379,1751861441803,-1500.0,0.00023465,2]
[370043380,1751861441812,-1500.0,0.00023465,2]
[370043381,1751861441821,-1500.0,0.00023465,2]
[370043382,1751861441830,-25000.0,0.00023465,2]
[370043383,1751861441839,-7770.8380668,0.00023465,2]
[370043384,1751861441849,-716.195754,0.0002352,2]
[370043385,1751861441858,-742.6949969,0.00023575,2]
[370043386,1751861441867,-1206.77470688,0.00023624,9]
[370043387,1751861441876,-770.17471178,0.0002363,2]
[370043388,1751861441886,-150.078,0.00023672,2]
[370043389,1751861441895,-150.102,0.00023682,2]
[370043390,1751861441904,-150.0,0.00023682,2]
[370043391,1751861441914,-150.0,0.00023682,2]
[370043392,1751861441923,-176.413,0.00023682,2]
[370043393,1751861441932,-967.0,0.00023682,2]
[370043394,1751861441942,-2153.0,0.00023682,2]
[370043395,1751861441951,-646.0,0.00023682,2]
[370043396,1751861441960,-403.71426483,0.00023685,2]
[370043397,1751861441972,-179.6927576,0.00023699,2]
[370043398,1751861441981,-318.9596565,0.00023699,2]
[370043399,1751861441991,-576.0368563,0.00023699,2]
[370043400,1751861442000,-295.7647253,0.00023699,2]
[370043401,1751861442009,-307.4988,0.00023699,2]
[370043402,1751861442019,-802.654,0.00023753,2]
[370043403,1751861442028,-2200.0,0.00023822,2]
[370043404,1751861442038,-1206.77470688,0.00023831,10]
[370043405,1751861442047,-1094.78989579,0.00023886,2]
[370043406,1751861442057,-1042.570553,0.000239,2]
[370043407,1751861442066,-215.21338352,0.00024,7]
[370043408,1751861442075,-215.21338352,0.00024,10]
[370043409,1751861442084,-160.0,0.00024,7]
[370043410,1751861442094,-160.0,0.00024,10]
[370043411,1751861442103,-160.0,0.00024,7]
[370043412,1751861442112,-160.0,0.00024,10]
[370043413,1751861442121,-160.0,0.00024,7]
[370043414,1751861442130,-160.0,0.00024,10]
[370043415,1751861442140,-837.79946008,0.00024,7]
[370043416,1751861442149,-837.79946008,0.00024,10]
[370043417,1751861442158,-230.48668418,0.00024,7]
[370043418,1751861442167,-230.48668418,0.00024,10]
[370043419,1751861442176,-5000.0,0.00024013,2]
[370043420,1751861442184,-25000.0,0.00024013,2]
[370043421,1751861442193,-1206.77470688,0.00024038,10]
[370043422,1751861442202,-151.0,0.000241,9]
[370043423,1751861442211,-152.0,0.00024164,7]
[370043424,1751861442220,-1206.77470688,0.00024245,10]
[370043425,1751861442229,-1152.0,0.00024266,2]
[370043426,1751861442239,-1206.77470688,0.00024452,11]
[370043427,1751861442248,-2314.177802,0.000245,4]
[370043428,1751861442258,-151.0,0.000245,6]
[370043429,1751861442268,-318.9845552,0.00024521,2]
[370043430,1751861442277,-576.0368563,0.00024521,2]
[370043431,1751861442287,-576.0368563,0.00024521,2]
[370043432,1751861442297,-576.0368563,0.00024521,2]
[370043433,1751861442306,-576.0368563,0.00024521,2]
[370043434,1751861442316,-575.8753127,0.00024521,2]
[370043435,1751861442325,-151.0,0.00024544,7]
[370043436,1751861442334,-5000.0,0.00024561,2]
[370043437,1751861442344,-25000.0,0.00024561,2]
[370043438,1751861442354,-500.0,0.00024573,2]
[370043439,1751861442364,-600.0,0.00024573,2]
[370043440,1751861442373,-161.20848038,0.00024573,2]
[370043441,1751861442382,-309.1293483,0.00024573,2]
[370043442,1751861442391,-500.0,0.00024573,2]
[370043443,1751861442400,-500.0,0.00024573,2]
[370043444,1751861442409,-628.58,0.000246,7]
[370043445,1751861442420,-151.0,0.000246,5]
[370043446,1751861442429,-4434.17,0.000246,7]
[370043447,1751861442439,-58689.35,0.000246,7]
[370043448,1751861442448,-71623.11517033,0.00024651,2]
[370043449,1751861442458,-210.00855503,0.00024657,2]
[370043450,1751861442467,-150.0,0.00024658,2]
[370043451,1751861442590,-380.0,0.00024658,2]
[370043452,1751861442600,-200.0,0.00024658,15]
[370043453,1751861442609,-329.59275799,0.00024658,2]
[370043454,1751861442619,-1206.77470688,0.00024659,11]
[370043455,1751861442628,-168.0,0.00024729,2]
[370043456,1751861442638,-430.98873491,0.00024773,2]
[370043457,1751861442646,-1723.95493965,0.00024773,2]
[370043458,1751861442656,-3878.89861421,0.00024773,2]
[370043459,1751861442665,-6888.92393883,0.00024773,2]
[370043460,1751861442674,-618.16854616,0.00024773,2]
[370043461,1751861442683,-2470.20151045,0.00024773,2]
[370043462,1751861442693,-168.0,0.00024774,2]
[370043463,1751861442703,-74825.6036818,0.000248,2]
[370043464,1751861442712,-693.71839746,0.000248,4]
[370043465,1751861442722,-693.71839746,0.000248,4]
[370043466,1751861442731,-693.71839746,0.000248,4]
[370043467,1751861442740,-693.71839746,0.000248,4]
[370043468,1751861442749,-693.71839746,0.000248,4]
[370043469,1751861442760,-693.71839746,0.000248,4]
[370043470,1751861442769,-693.71839746,0.000248,4]
[370043471,1751861442779,-693.71839746,0.000248,4]
[370043472,1751861442789,-693.71839746,0.000248,4]
[370043473,1751861442798,-693.71839746,0.000248,4]
[370043474,1751861442807,-693.71839746,0.000248,4]
[370043475,1751861442817,-693.71839746,0.000248,4]
[370043476,1751861442826,-693.71839746,0.000248,4]
[370043477,1751861442836,-693.71839746,0.000248,4]
[370043478,1751861442846,-693.71839746,0.000248,4]
[370043479,1751861442855,-693.71839746,0.000248,4]
[370043480,1751861442864,-693.71839746,0.000248,4]
[370043481,1751861442874,-693.71839746,0.000248,4]
[370043482,1751861442883,-693.71839746,0.000248,4]
[370043483,1751861442892,-693.71,0.000248,4]
[370043484,1751861442901,-1618.67626073,0.000248,4]
[370043485,1751861442910,-1618.67626073,0.000248,4]
[370043486,1751861442919,-1618.67626073,0.000248,4]
[370043487,1751861442929,-1618.67626073,0.000248,4]
[370043489,1751861442938,-1618.67626073,0.000248,4]
[370043491,1751861442948,-1618.67626073,0.000248,4]
[370043493,1751861442958,-1618.67626073,0.000248,4]
[370043494,1751861442970,-1618.67626073,0.000248,4]
[370043495,1751861442983,-1618.67626073,0.000248,4]
[370043496,1751861442992,-1618.67626073,0.000248,4]
[370043497,1751861443002,-1618.67626073,0.000248,4]
[370043498,1751861443012,-1618.67626073,0.000248,4]
[370043499,1751861443022,-1618.67626073,0.000248,4]
[370043500,1751861443031,-1618.67626073,0.000248,4]
[370043501,1751861443041,-1618.67626073,0.000248,4]
[370043502,1751861443052,-1618.67626073,0.000248,4]
[370043503,1751861443069,-1618.67626073,0.000248,4]
[370043504,1751861443079,-1618.67626073,0.000248,4]
[370043505,1751861443088,-1618.67626073,0.000248,4]
[370043506,1751861443098,-1618.67,0.000248,4]
[370043508,1751861443108,-150.18282476,0.000248,4]
[370043510,1751861443117,-150.18282476,0.000248,4]
[370043512,1751861443128,-150.18282476,0.000248,4]
[370043514,1751861443137,-150.18282476,0.000248,4]
[370043515,1751861443147,-150.18282476,0.000248,4]
[370043517,1751861443156,-150.18282476,0.000248,4]
[370043518,1751861443167,-150.18282476,0.000248,4]
[370043519,1751861443177,-150.18282476,0.000248,4]
[370043520,1751861443187,-150.18282476,0.000248,4]
[370043521,1751861443200,-150.18282476,0.000248,4]
[370043522,1751861443209,-150.18282476,0.000248,4]
[370043523,1751861443218,-150.18282476,0.000248,4]
[370043524,1751861443227,-150.18282476,0.000248,4]
[370043525,1751861443237,-150.18282476,0.000248,4]
[370043526,1751861443247,-150.18282476,0.000248,4]
[370043527,1751861443258,-150.18282476,0.000248,4]
[370043528,1751861443267,-150.18282476,0.000248,4]
[370043529,1751861443278,-150.18282476,0.000248,4]
[370043530,1751861443288,-150.18282476,0.000248,4]
[370043531,1751861443298,-150.18,0.000248,4]
[370043532,1751861443308,-350.42659112,0.000248,4]
[370043533,1751861443318,-350.42659112,0.000248,4]
[370043534,1751861443328,-350.42659112,0.000248,4]
[370043535,1751861443338,-350.42659112,0.000248,4]
[370043536,1751861443347,-350.42659112,0.000248,4]
[370043537,1751861443357,-350.42659112,0.000248,4]
[370043538,1751861443367,-350.42659112,0.000248,4]
[370043539,1751861443377,-350.42659112,0.000248,4]
[370043540,1751861443388,-350.42659112,0.000248,4]
[370043541,1751861443398,-350.42659112,0.000248,4]
[370043542,1751861443408,-350.42659112,0.000248,4]
[370043543,1751861443418,-350.42659112,0.000248,4]
[370043544,1751861443428,-350.42659112,0.000248,4]
[370043545,1751861443437,-350.42659112,0.000248,4]
[370043546,1751861443447,-350.42659112,0.000248,4]
[370043547,1751861443456,-350.42659112,0.000248,4]
[370043548,1751861443466,-350.42659112,0.000248,4]
[370043549,1751861443476,-350.42659112,0.000248,4]
[370043550,1751861443486,-350.42659112,0.000248,4]
[370043551,1751861443496,-350.42,0.000248,4]
[370043552,1751861443506,-1094.78989579,0.00024801,2]
[370043553,1751861443516,-1498.20536688,0.00024805,2]
[370043554,1751861443526,-238.40868167,0.00024823,7]
[370043555,1751861443536,-215.0738,0.00024834,2]
[370043556,1751861443546,-1498.20536688,0.00024853,2]
[370043557,1751861443555,-1206.77470688,0.00024866,12]